fUST/lending_fUST_20250218
["ID","MTS","AMOUNT","RATE_DAILY","PERIOD"]
[353496200,1739884233895,-317.34,0.00013887,2]
[353496201,1739884233908,-501.68909016,0.00013889,2]
[353496202,1739884233920,-500.0,0.00013889,2]
[353496203,1739884233931,-500.0,0.00013889,2]
[353496204,1739884233942,-500.0,0.00013889,2]
[353496205,1739884233955,-500.0,0.00013889,2]
[353496206,1739884233968,-500.0,0.00013889,2]
[353496207,1739884233980,-501.72743412,0.00013889,2]
[353496208,1739884233993,-500.0,0.00013889,2]
[353496209,1739884234006,-500.0,0.00013889,2]
[353496210,1739884234019,-500.0,0.00013889,2]
[353496211,1739884234030,-500.0,0.00013889,2]
[353496212,1739884234042,-500.0,0.00013889,2]
[353496213,1739884234055,-500.0,0.00013889,2]
[353496214,1739884234068,-500.0,0.00013889,2]
[353496215,1739884234079,-500.0,0.00013889,2]
[353496216,1739884234090,-500.0,0.0001389,2]
[353496217,1739884234102,-207.06302328,0.0001389,2]
[353496218,1739884234114,-500.0,0.0001389,2]
[353496219,1739884234125,-500.0,0.0001389,2]
[353496220,1739884234136,-500.0,0.0001389,2]
[353496221,1739884234148,-500.57309443,0.0001389,2]
[353496222,1739884234160,-500.0,0.0001389,2]
[353496223,1739884234173,-502.4229373,0.0001389,2]
[353496224,1739884234184,-599.16849811,0.0001389,2]
[353496225,1739884234196,-502.48918186,0.0001389,2]
[353496226,1739884234207,-613.78,0.0001389,2]
[353496227,1739884234217,-500.0,0.0001389,2]
[353496228,1739884234228,-501.54018312,0.0001389,2]
[353496229,1739884234239,-502.01351534,0.0001389,2]
[353496230,1739884234250,-500.0,0.0001389,2]
[353496231,1739884234262,-500.0,0.0001389,2]
[353496232,1739884234273,-501.07565322,0.0001389,2]
[353496233,1739884234284,-500.0,0.0001389,2]
[353496234,1739884234297,-500.0,0.0001389,2]
[353496235,1739884234308,-501.6618841,0.0001389,2]
[353496236,1739884234321,-500.0,0.0001389,2]
[353496237,1739884234333,-501.87893835,0.0001389,2]
[353496238,1739884234347,-501.77120487,0.0001389,2]
[353496239,1739884234359,-500.0,0.00013891,2]
[353496240,1739884234372,-291.03854298,0.00013891,2]
[353496241,1739884234383,-453.38631141,0.00013891,2]
[353496242,1739884234394,-500.0,0.00013891,2]
[353496243,1739884234406,-500.0,0.00013891,2]
[353496244,1739884234421,-500.0,0.00013891,2]
[353496245,1739884234438,-500.0,0.00013891,2]
[353496246,1739884234456,-500.0,0.00013899,2]
[353496247,1739884234469,-172.18965139,0.00013952,2]
[353496248,1739884234481,-706.96358343,0.00013967,2]
[353496249,1739884234499,-219.12641657,0.00013967,2]
[353496250,1739884234509,-435.73450325,0.00013967,2]
[353496297,1739884238111,-64.26549675,0.00013967,2]
[353496299,1739884238122,-500.0,0.00013967,2]
[353496301,1739884238133,-591.81,0.00013967,2]
[353496303,1739884238144,-500.0,0.00013967,2]
[353496305,1739884238154,-470.35784664,0.00013967,2]
[353496307,1739884238164,-500.0,0.00013967,2]
[353496310,1739884238174,-1340.05,0.00013967,2]
[353496312,1739884238183,-500.0,0.00013967,2]
[353496330,1739884238336,-2408.08,0.00013967,2]
[353496332,1739884238352,-500.0,0.00013967,2]
[353496334,1739884238361,-1583.53,0.00013967,2]
[353496336,1739884238371,-968.7,0.00013967,2]
[353496338,1739884238380,-602.53443641,0.00013968,2]
[353496340,1739884238390,-500.0,0.00013969,2]
[353496343,1739884238399,-256.45737761,0.00013969,2]
[353496345,1739884238408,-500.0,0.00013969,2]
[353496347,1739884238417,-500.0,0.00013969,2]
[353496349,1739884238427,-500.0,0.00013969,2]
[353496351,1739884238436,-202.68174521,0.00013969,2]
[353496352,1739884238446,-500.0,0.00013969,2]
[353496354,1739884238455,-500.0,0.00013969,2]
[353496356,1739884238464,-500.0,0.00013969,2]
[353496359,1739884238474,-500.0,0.00013969,2]
[353496361,1739884238484,-500.0,0.00013969,2]
[353496363,1739884238494,-500.0,0.00013969,2]
[353496365,1739884238503,-500.0,0.00013969,2]
[353496367,1739884238513,-500.0,0.00013969,2]
[353496369,1739884238523,-500.0,0.00013969,2]
[353496371,1739884238533,-500.0,0.00013969,2]
[353496373,1739884238542,-500.0,0.00013969,2]
[353496375,1739884238552,-500.0,0.00013969,2]
[353496377,1739884238561,-500.0,0.00013969,2]
[353496379,1739884238571,-500.0,0.00013969,2]
[353496381,1739884238581,-500.0,0.00013969,2]
[353496383,1739884238590,-500.0,0.00013969,2]
[353496385,1739884238599,-500.0,0.00013969,2]
[353496387,1739884238610,-500.0,0.00013969,2]
[353496389,1739884238620,-500.0,0.00013969,2]
[353496391,1739884238629,-500.0,0.00013969,2]
[353496393,1739884238638,-500.0,0.00013969,2]
[353496395,1739884238648,-994.25,0.00013969,2]
[353496397,1739884238657,-500.0,0.00013969,2]
[353496399,1739884238666,-500.0,0.00013969,2]
[353496401,1739884238676,-500.0,0.00013969,2]
[353496403,1739884238685,-887.38,0.00013969,2]
[353496405,1739884238696,-500.0,0.00013969,2]
[353496407,1739884238705,-500.0,0.00013969,2]
[353496409,1739884238714,-500.0,0.00013969,2]
[353496411,1739884238723,-500.0,0.00013969,2]
[353496413,1739884238733,-1762.53,0.00013969,2]
[353496415,1739884238742,-167.74,0.00013969,2]
[353496417,1739884238751,-592.84,0.00013969,2]
[353496419,1739884238760,-500.0,0.00013969,2]
[353496421,1739884238770,-500.0,0.00013969,2]
[353496423,1739884238779,-500.0,0.00013969,2]
[353496425,1739884238788,-841.18,0.00013969,2]
[353496427,1739884238797,-500.0,0.00013969,2]
[353496429,1739884238806,-500.0,0.00013969,2]
[353496431,1739884238815,-500.0,0.00013969,2]
[353496433,1739884238824,-500.0,0.00013969,2]
[353496435,1739884238834,-500.0,0.00013969,2]
[353496437,1739884238843,-275.69,0.00013969,2]
[353496439,1739884238853,-500.0,0.00013969,2]
[353496441,1739884238861,-500.0,0.00013969,2]
[353496443,1739884238871,-500.0,0.00013969,2]
[353496445,1739884238880,-500.0,0.00013969,2]
[353496447,1739884238893,-500.0,0.00013969,2]
[353496449,1739884238903,-199.51,0.00013969,2]
[353496451,1739884238914,-500.0,0.00013969,2]
[353496453,1739884238923,-500.0,0.00013969,2]
[353496455,1739884238932,-500.0,0.00013969,2]
[353496457,1739884238941,-4617.12,0.00013969,2]
[353496459,1739884238951,-500.0,0.00013969,2]
[353496461,1739884238961,-565.39,0.00013969,2]
[353496463,1739884238970,-500.0,0.00013969,2]
[353496465,1739884238980,-500.0,0.00013969,2]
[353496467,1739884238989,-500.0,0.00013969,2]
[353496469,1739884238998,-500.0,0.00013969,2]
[353496471,1739884239007,-9150.35,0.00013969,2]
[353496473,1739884239016,-1798.7630025,0.00013969,2]
[353496483,1739884239097,-2198.02096444,0.00013969,2]
[353496615,1739884240439,-932.25288399,0.00013969,2]
[353496691,1739884243210,-500.0,0.00013886,2]
[353496692,1739884243220,-1361.07593,0.00013969,2]
[353496693,1739884243266,-8031.03721907,0.00013969,2]
[353496694,1739884243276,-1318.75,0.00013969,2]
[353496695,1739884243286,-500.0,0.00013969,2]
[353496696,1739884243296,-404.9997284,0.00013971,2]
[353496697,1739884243307,-46.8102716,0.00013971,2]
[353496698,1739884243318,-500.0,0.00013971,2]
[353496699,1739884243328,-500.0,0.00013971,2]
[353496700,1739884243338,-97.38514237,0.00013971,2]
[353496701,1739884243350,-402.61485763,0.00013971,2]
[353496702,1739884243361,-262.19,0.00013971,2]
[353496704,1739884243371,-500.0,0.00013971,2]
[353496705,1739884243381,-500.0,0.00013971,2]
[353496706,1739884243391,-500.0,0.00013972,2]
[353496707,1739884243400,-229.01695678,0.00013972,2]
[353496708,1739884243410,-592.66,0.00013972,2]
[353496709,1739884243419,-551.79256684,0.00013972,2]
[353496710,1739884243429,-502.62332079,0.00013972,2]
[353496712,1739884243439,-501.47238795,0.00013972,2]
[353496714,1739884243449,-501.88823899,0.00013972,2]
[353496715,1739884243459,-500.0,0.00013972,2]
[353496717,1739884243468,-569.60195062,0.00013972,2]
[353496719,1739884243477,-500.0,0.00013972,2]
[353496721,1739884243487,-926.09,0.00014049,2]
[353496722,1739884243497,-500.0,0.00014049,2]
[353496723,1739884243507,-500.0,0.00014049,2]
[353496724,1739884243517,-591.81,0.00014049,2]
[353496725,1739884243527,-500.0,0.00014049,2]
[353496726,1739884243536,-500.0,0.00014049,2]
[353496727,1739884243546,-1340.05,0.00014049,2]
[353496728,1739884243556,-500.0,0.00014049,2]
[353496729,1739884243566,-2408.08,0.00014049,2]
[353496730,1739884243576,-500.0,0.00014049,2]
[353496731,1739884243586,-1583.53,0.00014049,2]
[353496732,1739884243596,-968.7,0.00014049,2]
[353496733,1739884243606,-500.0,0.00014051,2]
[353496734,1739884243616,-500.0,0.00014051,2]
[353496735,1739884243627,-994.25,0.00014051,2]
[353496736,1739884243636,-500.0,0.00014051,2]
[353496737,1739884243646,-500.0,0.00014051,2]
[353496738,1739884243656,-887.38,0.00014051,2]
[353496739,1739884243666,-500.0,0.00014051,2]
[353496740,1739884243676,-500.0,0.00014051,2]
[353496741,1739884243686,-1762.53,0.00014051,2]
[353496742,1739884243695,-500.0,0.00014051,2]
[353496743,1739884243705,-841.18,0.00014051,2]
[353496744,1739884243715,-508.28,0.00014051,2]
[353496745,1739884243725,-500.0,0.00014051,2]
[353496746,1739884243735,-500.0,0.00014051,2]
[353496747,1739884243744,-500.0,0.00014051,2]
[353496748,1739884243754,-500.0,0.00014051,2]
[353496749,1739884243763,-500.0,0.00014051,2]
[353496750,1739884243773,-222.72,0.00014051,2]
[353496751,1739884243783,-500.0,0.00014051,2]
[353496752,1739884243792,-4617.12,0.00014051,2]
[353496753,1739884243802,-500.0,0.00014051,2]
[353496754,1739884243812,-565.39,0.00014051,2]
[353496755,1739884243822,-500.0,0.00014051,2]
[353496756,1739884243832,-500.0,0.00014051,2]
[353496757,1739884243841,-152.71,0.00014051,2]
[353496758,1739884243851,-3838.60278278,0.00014051,2]
[353496759,1739884243865,-2500.0,0.00014051,2]
[353496760,1739884243878,-2811.74721722,0.00014051,2]
[353496761,1739884243890,-2283.75278278,0.00014051,2]
[353496766,1739884246265,-500.0,0.00013885,2]
[353496767,1739884246275,-473.04278703,0.00013885,2]
[353496768,1739884246284,-500.0,0.00013967,2]
[353496769,1739884246294,-496.57386365,0.00014049,2]
[353496770,1739884246305,-3.42613635,0.00014049,2]
[353496771,1739884246315,-5515.43764148,0.00014051,2]
[353496772,1739884246326,-6521.95957574,0.00014051,2]
[353496773,1739884246335,-1318.75,0.00014051,2]
[353496774,1739884246345,-500.0,0.00014051,2]
[353496775,1739884246354,-500.0,0.00014052,2]
[353496776,1739884246366,-500.0,0.00014052,2]
[353496777,1739884246375,-500.0,0.00014052,2]
[353496778,1739884246384,-500.0,0.00014052,2]
[353496779,1739884246394,-500.0,0.00014052,2]
[353496780,1739884246403,-503.76438481,0.00014052,2]
[353496781,1739884246412,-500.0,0.00014052,2]
[353496783,1739884246422,-500.0,0.00014052,2]
[353496785,1739884246431,-500.0,0.00014052,2]
[353496787,1739884246441,-500.0,0.00014052,2]
[353496788,1739884246450,-500.0,0.00014052,2]
[353496789,1739884246459,-500.0,0.00014052,2]
[353496790,1739884246468,-500.0,0.00014052,2]
[353496791,1739884246478,-500.0,0.00014052,2]
[353496792,1739884246488,-238.01,0.00014052,2]
[353496793,1739884246497,-500.0,0.00014052,2]
[353496794,1739884246507,-500.0,0.00014052,2]
[353496795,1739884246516,-582.75,0.00014052,2]
[353496796,1739884246525,-500.0,0.00014052,2]
[353496797,1739884246535,-500.0,0.00014052,2]
[353496798,1739884246544,-500.0,0.00014052,2]
[353496799,1739884246553,-312.21,0.00014052,2]
[353496800,1739884246562,-500.0,0.00014052,2]
[353496801,1739884246571,-500.0,0.00014052,2]
[353496802,1739884246581,-500.0,0.00014052,2]
[353496803,1739884246590,-500.0,0.00014052,2]
[353496804,1739884246599,-500.0,0.00014053,2]
[353496805,1739884246701,-500.0,0.00014053,2]
[353496806,1739884246711,-500.0,0.00014053,2]
[353496807,1739884246721,-611.21,0.00014053,2]
[353496808,1739884246730,-500.0,0.00014055,2]
[353496809,1739884246739,-503.67374723,0.00014055,2]
[353496810,1739884246748,-501.82626574,0.00014055,2]
[353496811,1739884246758,-156.81491052,0.00014055,5]
[353496812,1739884246767,-314.0,0.00014055,5]
[353496813,1739884246776,-314.0,0.00014055,5]
[353496814,1739884246786,-314.0,0.00014055,5]
[353496815,1739884246795,-314.0,0.00014055,5]
[353496816,1739884246804,-314.0,0.00014055,5]
[353496817,1739884246813,-314.0,0.00014055,5]
[353496818,1739884246823,-314.0,0.00014055,5]
[353496819,1739884246832,-314.0,0.00014055,5]
[353496820,1739884246841,-314.0,0.00014055,5]
[353496821,1739884246850,-314.0,0.00014055,5]
[353496822,1739884246860,-314.0,0.00014055,5]
[353496823,1739884246870,-314.0,0.00014055,5]
[353496824,1739884246880,-314.0,0.00014055,5]
[353496825,1739884246894,-314.0,0.00014055,5]
[353496826,1739884246903,-314.0,0.00014055,5]
[353496827,1739884246912,-314.0,0.00014055,5]
[353496828,1739884246922,-314.0,0.00014055,5]
[353496829,1739884246931,-314.0,0.00014055,5]
[353496830,1739884246940,-314.0,0.00014055,5]
[353496831,1739884246950,-314.0,0.00014055,5]
[353496832,1739884246959,-346.36185749,0.00014055,5]
[353496833,1739884246970,-926.09,0.00014132,2]
[353496834,1739884246979,-500.0,0.00014132,2]
[353496835,1739884246988,-500.0,0.00014132,2]
[353496836,1739884246998,-591.81,0.00014132,2]
[353496837,1739884247007,-500.0,0.00014132,2]
[353496838,1739884247017,-355.16723555,0.00014132,2]
[353496839,1739884247026,-1340.05,0.00014132,2]
[353496840,1739884247036,-500.0,0.00014132,2]
[353496841,1739884247045,-2408.08,0.00014132,2]
[353496842,1739884247055,-1583.53,0.00014132,2]
[353496843,1739884247064,-968.7,0.00014132,2]
[353496844,1739884247074,-500.0,0.00014132,2]
[353496845,1739884247083,-500.0,0.00014133,2]
[353496846,1739884247092,-215.87,0.00014133,2]
[353496847,1739884247101,-522.22445469,0.00014133,2]
[353496848,1739884247115,-472.02554531,0.00014133,2]
[353496849,1739884247125,-500.0,0.00014133,2]
[353496850,1739884247135,-887.38,0.00014133,2]
[353496851,1739884247144,-409.45377967,0.00014133,2]
[353496852,1739884247153,-500.0,0.00014133,2]
[353496853,1739884247163,-258.077175,0.00014133,2]
[353496854,1739884247175,-1504.452825,0.00014133,2]
[353496855,1739884247184,-500.0,0.00014133,2]
[353496856,1739884247194,-841.18,0.00014133,2]
[353496857,1739884247203,-160.85071865,0.00014133,2]
[353496858,1739884247215,-339.14928135,0.00014133,2]
[353496859,1739884247225,-500.0,0.00014133,2]
[353496860,1739884247235,-452.3436439,0.00014133,2]
[353496861,1739884251299,1000.0,0.00019,120]
[353496864,1739884989109,400.0,9.041e-05,2]
[353497037,1739885227138,-281.20317066,0.00012968,2]
[353497052,1739885239117,-199.14298456,0.00012968,2]
[353497053,1739885239140,-445.1830682,0.00013064,2]
[353497054,1739885239163,-44.1585506,0.00013068,2]
[353497055,1739885248129,-655.8414494,0.00013068,2]
[353497056,1739885248155,-300.0,0.00013882,2]
[353497057,1739885248182,-500.56286597,0.00013883,2]
[353497058,1739885248205,-500.0,0.00013883,2]
[353497059,1739885248232,-297.02236655,0.00013883,2]
[353497060,1739885251082,-202.97763345,0.00013883,2]
[353497061,1739885251113,-500.0,0.00013883,2]
[353497062,1739885251140,-500.0,0.00013883,2]
[353497063,1739885251165,-47.12518094,0.00013883,2]
[353497065,1739885345129,-310.57276771,0.0001,7]
[353497127,1739885432622,-17.28528638,0.0001,7]
[353497129,1739885432632,-195.7894704,0.00012901,2]
[353497130,1739885432641,-274.36180224,0.00013881,2]
[353497136,1739885432686,-25.63819776,0.00013881,2]
[353497138,1739885432696,-863.89,0.00013882,2]
[353497140,1739885432706,-500.0,0.00013882,2]
[353497142,1739885432715,-500.0,0.00013882,2]
[353497145,1739885432724,-500.0,0.00013882,2]
[353497146,1739885432734,-526.96,0.00013882,2]
[353497148,1739885432743,-1166.8,0.00013882,2]
[353497151,1739885432752,-2006.74,0.00013882,2]
[353497152,1739885432761,-500.0,0.00013882,2]
[353497155,1739885432771,-807.25,0.00013882,2]
[353497157,1739885432780,-279.33283549,0.00013882,2]
[353497158,1739885432790,-500.0,0.00013882,2]
[353497160,1739885432799,-1319.61,0.00013882,2]
[353497162,1739885432809,-500.0,0.00013882,2]
[353497175,1739885432918,-500.0,0.00013882,2]
[353497177,1739885432928,-500.0,0.00013882,2]
[353497179,1739885432938,-500.0,0.00013882,2]
[353497181,1739885432947,-232.49578652,0.00013882,2]
[353497183,1739885432957,-500.0,0.00013882,2]
[353497185,1739885432966,-629.00378803,0.00013882,2]
[353497187,1739885432976,-500.0,0.00013882,2]
[353497189,1739885432986,-500.0,0.00013882,2]
[353497191,1739885432996,-368.25810873,0.00013882,2]
[353497193,1739885433005,-452.87481906,0.00013883,2]
[353497195,1739885433015,-500.0,0.00013883,2]
[353497197,1739885433024,-500.0,0.00013883,2]
[353497199,1739885433034,-500.0,0.00013883,2]
[353497201,1739885433044,-500.0,0.00013883,2]
[353497202,1739885433054,-500.0,0.00013883,2]
[353497204,1739885433063,-500.0,0.00013883,2]
[353497206,1739885433073,-500.0,0.00013883,2]
[353497208,1739885433082,-500.0,0.00013883,2]
[353497210,1739885433091,-500.0,0.00013883,2]
[353497212,1739885433101,-500.0,0.00013883,2]
[353497214,1739885433110,-179.61,0.00013883,2]
[353497216,1739885433120,-828.54,0.00013883,2]
[353497218,1739885433130,-500.0,0.00013883,2]
[353497220,1739885433139,-500.0,0.00013883,2]
[353497221,1739885433149,-739.48,0.00013883,2]
[353497223,1739885433159,-197.38,0.00013883,2]
[353497225,1739885433170,-1468.78,0.00013883,2]
[353497227,1739885433179,-186.00702312,0.00013883,2]
[353497266,1739885438348,-552.26226718,0.00013882,2]
[353497267,1739885438360,-361.41787185,0.00013882,2]
[353497268,1739885438372,-138.58212815,0.00013882,2]
[353497269,1739885438382,-192.43286885,0.00013882,2]
[353497270,1739885438407,-305.23003691,0.00013882,2]
[353497272,1739885438417,-500.0,0.00013882,2]
[353497273,1739885438426,-14.72297688,0.00013883,2]
[353497275,1739885438435,-809.61,0.00013883,2]
[353497276,1739885438445,-500.0,0.00013883,2]
[353497277,1739885438454,-500.0,0.00013883,2]
[353497278,1739885438464,-500.0,0.00013883,2]
[353497279,1739885438474,-500.0,0.00013883,2]
[353497280,1739885438483,-500.0,0.00013883,2]
[353497281,1739885438492,-375.01,0.00013883,2]
[353497282,1739885438502,-500.0,0.00013883,2]
[353497284,1739885438511,-500.0,0.00013883,2]
[353497286,1739885438520,-500.0,0.00013883,2]
[353497288,1739885438530,-4039.98,0.00013883,2]
[353497290,1739885438539,-500.0,0.00013883,2]
[353497292,1739885438548,-500.0,0.00013883,2]
[353497294,1739885438557,-500.0,0.00013883,2]
[353497296,1739885438567,-500.0,0.00013883,2]
[353497298,1739885438576,-12531.0,0.00013883,2]
[353497300,1739885438585,-8006.56,0.00013883,2]
[353497302,1739885438594,-1153.9,0.00013883,2]
[353497303,1739885438603,-246.96834135,0.00013883,2]
[353497304,1739885438613,-503.69824701,0.00013884,2]
[353497305,1739885438623,-500.0,0.00013884,2]
[353497306,1739885438633,-500.0,0.00013884,2]
[353497307,1739885438642,-500.0,0.00013884,2]
[353497308,1739885438651,-500.0,0.00013884,2]
[353497309,1739885438661,-500.0,0.00013884,2]
[353497310,1739885438670,-500.0,0.00013884,2]
[353497311,1739885438680,-500.0,0.00013884,2]
[353497312,1739885438689,-276.8169302,0.00013884,2]
[353497313,1739885438699,-500.0,0.00013884,2]
[353497314,1739885438708,-500.0,0.00013884,2]
[353497315,1739885438717,-500.0,0.00013884,2]
[353497316,1739885438727,-500.0,0.00013884,2]
[353497317,1739885438737,-500.0,0.00013884,2]
[353497318,1739885438746,-500.0,0.00013884,2]
[353497319,1739885438755,-500.0,0.00013884,2]
[353497320,1739885438765,-500.0,0.00013884,2]
[353497321,1739885438774,-525.13426293,0.00013884,2]
[353497322,1739885438783,-500.0,0.00013884,2]
[353497323,1739885438793,-500.0,0.00013884,2]
[353497324,1739885438802,-500.0,0.00013884,2]
[353497325,1739885438812,-500.0,0.00013884,2]
[353497326,1739885438821,-500.0,0.00013884,2]
[353497327,1739885438831,-500.0,0.00013884,2]
[353497328,1739885438841,-500.0,0.00013884,2]
[353497329,1739885438851,-500.0,0.00013884,2]
[353497330,1739885438860,-500.0,0.00013884,2]
[353497331,1739885438870,-500.0,0.00013884,2]
[353497332,1739885438879,-500.0,0.00013884,2]
[353497333,1739885438889,-500.0,0.00013884,2]
[353497334,1739885438898,-500.0,0.00013884,2]
[353497335,1739885438907,-500.0,0.00013884,2]
[353497336,1739885438917,-488.0,0.00013885,2]
[353497337,1739885438927,-500.0,0.00013885,2]
[353497338,1739885438937,-863.89,0.00013964,2]
[353497339,1739885438947,-477.57,0.00013964,2]
[353497340,1739885438957,-500.0,0.00013964,2]
[353497341,1739885438967,-500.0,0.00013964,2]
[353497342,1739885438976,-526.96,0.00013964,2]
[353497343,1739885438985,-1166.8,0.00013964,2]
[353497344,1739885438995,-2006.74,0.00013964,2]
[353497345,1739885439004,-807.25,0.00013964,2]
[353497346,1739885439014,-500.0,0.00013964,2]
[353497347,1739885439024,-1319.61,0.00013964,2]
[353497348,1739885439034,-500.0,0.00013964,2]
[353497349,1739885439043,-306.462855,0.00013966,2]
[353497350,1739885439053,-500.0,0.00013966,2]
[353497351,1739885439063,-500.0,0.00013966,2]
[353497352,1739885439072,-500.0,0.00013966,2]
[353497353,1739885439081,-500.0,0.00013966,2]
[353497354,1739885439091,-500.0,0.00013966,2]
[353497355,1739885439101,-500.0,0.00013966,2]
[353497356,1739885439110,-500.0,0.00013966,2]
[353497357,1739885439120,-500.0,0.00013966,2]
[353497358,1739885439134,-500.0,0.00013966,2]
[353497359,1739885439143,-500.0,0.00013966,2]
[353497360,1739885439153,-500.0,0.00013966,2]
[353497361,1739885439162,-500.0,0.00013966,2]
[353497362,1739885439172,-500.0,0.00013966,2]
[353497363,1739885439182,-211.5844172,0.00013966,2]
[353497364,1739885439191,-587.78,0.00013966,2]
[353497365,1739885439201,-432.88188608,0.00013966,2]
[353497366,1739885439210,-500.0,0.00013966,2]
[353497367,1739885439219,-500.0,0.00013966,2]
[353497368,1739885439229,-500.0,0.00013966,2]
[353497369,1739885439238,-828.54,0.00013966,2]
[353497370,1739885439248,-500.0,0.00013966,2]
[353497371,1739885439257,-500.0,0.00013966,2]
[353497372,1739885439267,-739.48,0.00013966,2]
[353497373,1739885439278,-1468.78,0.00013966,2]
[353497374,1739885439290,-809.61,0.00013966,2]
[353497375,1739885439300,-500.0,0.00013966,2]
[353497376,1739885439310,-500.0,0.00013966,2]
[353497377,1739885439319,-500.0,0.00013966,2]
[353497378,1739885439330,-500.0,0.00013966,2]
[353497379,1739885439339,-500.0,0.00013966,2]
[353497380,1739885439348,-500.0,0.00013966,2]
[353497381,1739885439358,-500.0,0.00013966,2]
[353497382,1739885439368,-500.0,0.00013966,2]
[353497383,1739885439379,-4039.98,0.00013966,2]
[353497384,1739885439389,-500.0,0.00013966,2]
[353497385,1739885439398,-500.0,0.00013966,2]
[353497386,1739885439408,-266.44,0.00013966,2]
[353497387,1739885439418,-500.0,0.00013966,2]
[353497388,1739885439427,-6521.80014132,0.00013966,2]
[353497389,1739885439440,-6009.19985868,0.00013966,2]
[353497390,1739885439450,-8006.56,0.00013966,2]
[353497391,1739885439459,-1153.9,0.00013966,2]
[353497392,1739885439469,-500.0,0.00013967,2]
[353497393,1739885439479,-2280.55,0.00014,2]
[353497394,1739885439489,-151.0,0.00014,2]
[353497395,1739885439498,-172.18965138,0.00014032,2]
[353497396,1739885439508,-863.89,0.00014047,2]
[353497397,1739885439518,-500.0,0.00014047,2]
[353497398,1739885439528,-398.29578037,0.00014047,2]
[353497399,1739885439538,-526.96,0.00014047,2]
[353497400,1739885439548,-1166.8,0.00014047,2]
[353497401,1739885439558,-2006.74,0.00014047,2]
[353497402,1739885439568,-807.25,0.00014047,2]
[353497403,1739885439578,-500.0,0.00014047,2]
[353497404,1739885439587,-1319.61,0.00014047,2]
[353497405,1739885439596,-500.0,0.00014047,2]
[353497406,1739885439605,-421.77410549,0.00014047,2]
[353497407,1739885439616,-500.0,0.00014048,2]
[353497408,1739885439625,-500.0,0.00014048,2]
[353497409,1739885439635,-500.0,0.00014048,2]
[353497410,1739885439644,-500.0,0.00014048,2]
[353497411,1739885439654,-500.0,0.00014048,2]
[353497412,1739885439664,-500.0,0.00014048,2]
[353497413,1739885439674,-500.0,0.00014048,2]
[353497414,1739885439683,-500.0,0.00014048,2]
[353497415,1739885439693,-500.0,0.00014048,2]
[353497416,1739885439703,-162.59309192,0.00014048,2]
[353497417,1739885439712,-500.0,0.00014048,2]
[353497418,1739885439721,-500.0,0.00014048,2]
[353497419,1739885439731,-500.0,0.00014048,2]
[353497420,1739885439740,-500.0,0.00014048,2]
[353497421,1739885439751,-500.0,0.00014048,2]
[353497422,1739885439761,-500.0,0.00014048,2]
[353497423,1739885439771,-828.54,0.00014048,2]
[353497424,1739885439781,-500.0,0.00014048,2]
[353497425,1739885439791,-500.0,0.00014048,2]
[353497426,1739885439801,-739.48,0.00014048,2]